[Event "22nd OIBM 2018"]
[Site "Gmund am Tegernsee"]
[Date "2018.10.30"]
[Round "4"]
[White "Heimerdinger, Joerg"]
[Black "Fischer, Daniel"]
[Result "0-1"]
[ECO "C77"]
[WhiteElo "2128"]
[BlackElo "2336"]
[Annotator "ChessBase"]
[PlyCount "72"]
[EventDate "2018.10.27"]
[EventType "swiss"]
[EventCountry "GER"]
[SourceTitle "playchess.com"]
[Source "ChessBase"]
[SourceQuality "1"]
[TimeControl "40/5400+30:1800+30"]

1. e4 {[%emt 0:00:00]} e5 {[%emt 0:00:00]} 2. Nf3 {[%emt 0:00:00]} Nc6 {[%emt 0:00:00]} 3. Bb5 {[%emt 0:00:22]} a6 {[%emt 0:00:00]} 4. Ba4 {[%emt 0:00:12]} Nf6 {[%emt 0:00:07]} 5. Qe2 {[%emt 0:00:19]} b5 {[%emt 0:00:30]} 6. Bb3 {[%emt 0:00:08]} Bc5 {[%emt 0:00:26]} 7. a4 {[%emt 0:00:30]} Na5 {[%emt 0:01:01]} 8. Bxf7+ {[%emt 0:12:55]} Kxf7 {[%emt 0:15:14]} 9. axb5 {[%emt 0:00:53]} c6 {[%emt 0:35:06]} 10. Rxa5 {[%emt 0:20:06]} Qxa5 {[%emt 0:00:51]} 11. Qc4+ {[%emt 0:00:09]} Ke7 {[%emt 0:07:56]} 12. Qxc5+ {[%emt 0:00:55]} d6 {[%emt 0:00:19]} 13. Nxe5 {[%emt 0:09:28]} dxc5 {[%emt 0:02:02]} 14. Nxc6+ {[%emt 0:00:08]} Kf7 {[%emt 0:00:22]} 15. Nxa5 {[%emt 0:00:06]} axb5 {[%emt 0:00:07]} 16. b4 {[%emt 0:02:18]} cxb4 {[%emt 0:04:18]} 17. Nb3 {[%emt 0:00:12]} Nxe4 {[%emt 0:03:41]} 18. d3 {[%emt 0:04:25]} Be6 {[%emt 0:04:16]} 19. Nd4 {[%emt 0:11:12]} Ra1 {[%emt 0:05:55]} 20. dxe4 {[%emt 0:05:28]} Rxb1 {[%emt 0:00:54]} 21. Kd2 {[%emt 0:02:15]} Rd8 {[%emt 0:01:47]} 22. Ke3 {[%emt 0:00:19]} Rc8 {[%emt 0:00:52]} 23. Kd2 {[%emt 0:05:04]} b3 {[%emt 0:03:02]} 24. cxb3 {[%emt 0:02:51]} Bxb3 {[%emt 0:00:11]} 25. Re1 {[%emt 0:01:29]} Rc4 {[%emt 0:02:18]} 26. Kd3 {[%emt 0:04:18]} Rbxc1 {[%emt 0:02:16]} 27. Rxc1 {[%emt 0:00:09]} Rxc1 {[%emt 0:00:05]} 28. Nxb3 {[%emt 0:00:05]} Rh1 {[%emt 0:00:27]} 29. Nd4 {[%emt 0:05:20]} b4 {[%emt 0:02:19]} 30. h3 {[%emt 0:01:10]} Rh2 {[%emt 0:01:06]} 31. Kc4 {[%emt 0:01:03]} Rxg2 {[%emt 0:00:41]} 32. f4 {[%emt 0:01:16]} Rb2 {[%emt 0:02:16]} 33. e5 {[%emt 0:01:43]} g6 {[%emt 0:01:03]} 34. Kd5 {[%emt 0:05:39]} b3 {[%emt 0:01:51]} 35. e6+ {[%emt 0:01:18]} Ke7 {[%emt 0:00:55]} 36. f5 {[%emt 0:01:18]} Rd2 {[%emt 0:00:16]} 0-1

[Event "22nd OIBM 2018"]
[Site "Gmund am Tegernsee"]
[Date "2018.10.30"]
[Round "4"]
[White "Gruettner, Ralf"]
[Black "Wacker, Peter"]
[Result "0-1"]
[ECO "D30"]
[WhiteElo "2112"]
[BlackElo "2313"]
[Annotator "NA"]
[PlyCount "77"]
[EventDate "2018.10.27"]
[EventType "swiss"]
[EventCountry "GER"]
[SourceTitle "playchess.com"]
[Source "ChessBase"]
[SourceQuality "1"]
[TimeControl "40/5400+30:1800+30"]

1. d4 {[%emt 0:00:00]} d5 {[%emt 0:00:03]} 2. c4 {[%emt 0:00:00]} e6 {[%emt 0:00:05]} 3. cxd5 {[%emt 0:00:00]} exd5 {[%emt 0:00:02]} 4. Nc3 {[%emt 0:00:00]} c6 {[%emt 0:00:29]} 5. Nf3 {[%emt 0:00:00]} Bd6 {[%emt 0:02:55]} 6. Bg5 {[%emt 0:03:26]} Ne7 {[%emt 0:00:07]} 7. e3 {[%emt 0:00:29]} Qb6 {[%emt 0:03:40]} 8. Bxe7 {[%emt 0:01:19] D31: Damengambit (Halbslawisch)} (8. Qd2 Bf5 9. Bh4 Nd7 10. Bg3 Bxg3 11. hxg3 Nf6 12. Na4 Qc7 13. Bd3 Bxd3 14. Qxd3 Nc8 15. Nc5 Nd6 {½-½ (82) Genov,P (2463)-Lenic,L (2637) Arvier 2012}) 8... Bxe7 {[%emt 0:00:26]} 9. Qc2 {[%emt 0:16:06]} Be6 {[%emt 0:11:33]} 10. Bd3 {[%emt 0:01:12]} Nd7 {[%emt 0:02:07]} 11. O-O {[%emt 0:00:50]} g6 $146 {[%emt 0:02:33]} ({Vorgänger:} 11... h6 12. a3 Qc7 13. Rac1 O-O 14. Rfe1 Bg4 15. Nxd5 {½-½ (56) Garcia de Blas,E (2000)-Ruiz Alba,D (1793) Llinars del Valles 2012}) 12. Rac1 {[%emt 0:03:11]} O-O {[%emt 0:02:12]} 13. a3 {[%emt 0:04:10]} a5 {[%emt 0:01:22]} 14. h4 {[%emt 0:12:42]} Qd8 {[%emt 0:09:00]} 15. h5 {[%emt 0:00:40]} Kg7 {[%emt 0:00:38]} 16. Ne2 {[%emt 0:09:09]} Bd6 {[%emt 0:03:57]} 17. Nf4 {[%emt 0:04:41]} Qf6 {[%emt 0:11:08]} 18. Qd2 {[%emt 0:08:22]} (18. g3 $11) 18... Bg4 {[%emt 0:03:48]} 19. Nh2 {[%emt 0:01:41]} Bf5 {[%emt 0:00:06]} 20. Be2 {[%emt 0:05:04]} g5 {[%emt 0:06:45]} 21. Nd3 {[%emt 0:01:14]} Qe7 {[%emt 0:08:03]} 22. g4 {[%emt 0:08:21]} Be6 {[%emt 0:09:59]} 23. f4 {[%emt 0:06:53]} f5 {[%emt 0:00:05]} 24. Ne5 {[%emt 0:02:50]} Nf6 {[%emt 0:01:25]} 25. gxf5 {[%emt 0:02:17]} ({But not} 25. fxg5 $2 Ne4) (25. Bd3 $17 {keeps fighting.} Ne4 26. Qg2) 25... Bxf5 {[%emt 0:02:00]} 26. Bf3 {[%emt 0:01:47]} gxf4 {[%emt 0:02:20]} 27. exf4 {[%emt 0:00:41]} Kh8 {[%emt 0:00:05]} 28. Rf2 {[%emt 0:03:37]} Ne4 {[%emt 0:01:24]} 29. Bxe4 {[%emt 0:00:03]} Bxe4 {[%emt 0:00:06]} 30. Kf1 $19 {[%emt 0:02:24]} Rf5 {[%emt 0:05:35]} 31. Nhf3 {[%emt 0:01:14]} Rxh5 {[%emt 0:02:38]} 32. Ng5 {[%emt 0:00:02]} Rf8 {[%emt 0:01:22]} 33. Nxe4 dxe4 {[%emt 0:00:08]} 34. Rc3 {[%emt 0:02:00]} Rh1+ {[%emt 0:01:50]} 35. Ke2 {[%emt 0:00:03]} Qh4 {[%emt 0:00:06]} 36. Ke3 {[%emt 0:00:51]} Rxf4 {[%emt 0:01:07]} 37. Rxf4 {[%emt 0:00:24]} Re1+ {[%emt 0:00:02]} 38. Qe2 Rxe2+ 39. Kxe2 0-1

[Event "22nd OIBM 2018"]
[Site "Gmund am Tegernsee"]
[Date "2018.10.30"]
[Round "4"]
[White "Schoetzig, Detlef"]
[Black "Rietze, Clemens"]
[Result "0-1"]
[ECO "D02"]
[WhiteElo "2102"]
[BlackElo "2293"]
[Annotator "NA"]
[PlyCount "80"]
[EventDate "2018.10.27"]
[EventType "swiss"]
[EventCountry "GER"]
[SourceTitle "playchess.com"]
[Source "ChessBase"]
[SourceQuality "1"]
[TimeControl "40/5400+30:1800+30"]

1. d4 {[%emt 0:00:00]} Nf6 {[%emt 0:00:00]} 2. Nf3 {[%emt 0:00:04]} d5 {[%emt 0:00:00]} 3. Bf4 {[%emt 0:00:20]} g6 {[%emt 0:00:23]} 4. e3 {[%emt 0:00:52]} Bg7 {[%emt 0:00:05]} 5. Nc3 {[%emt 0:00:23]} O-O {[%emt 0:00:59]} 6. Be2 {[%emt 0:00:08]} c5 {[%emt 0:00:38]} 7. dxc5 {[%emt 0:00:10]} Qa5 {[%emt 0:00:38]} 8. O-O {[%emt 0:00:10] D00: 1 d4 d5: Unusual lines} (8. Nd2 Qxc5 9. Nb3 Qb6 10. Nb5 Na6 11. Be5 Bd7 {½-½ (11) Sriram,J (2396)-Amonatov,F (2632) Johannesburg 2017}) 8... Qxc5 {[%emt 0:00:35]} 9. Nd4 {[%emt 0:01:09]} Rd8 $146 {[%emt 0:07:27]} ({Predecessor:} 9... Ne4 10. Nxe4 dxe4 11. Bxb8 Rxb8 12. c3 Bd7 13. Qc2 e5 14. Nb3 Qc6 15. Nd2 f5 {0-1 (40) Murshed,N (2429)-Odeev,H (2405) Guangzhou 2010}) 10. Ncb5 {[%emt 0:09:03]} Ne8 {[%emt 0:07:29]} 11. c3 {[%emt 0:14:11]} e5 {[%emt 0:02:22]} 12. Nb3 {[%emt 0:00:05]} Qb6 {[%emt 0:03:55]} 13. Bg3 {[%emt 0:01:16]} a6 {[%emt 0:00:29]} 14. Na3 {[%emt 0:00:18]} Nc6 {[%emt 0:01:38]} 15. Bf3 {[%emt 0:10:34]} Be6 {[%emt 0:01:30]} 16. Qd2 {[%emt 0:29:55]} Bh6 {[%emt 0:19:16]} 17. Qc2 {[%emt 0:04:37]} Rac8 {[%emt 0:07:52]} 18. Rad1 {[%emt 0:00:43]} f5 {[%emt 0:00:13]} 19. h3 {[%emt 0:01:41]} Nf6 {[%emt 0:04:21]} 20. Bh4 {[%emt 0:06:18]} g5 {[%emt 0:01:03]} 21. Bg3 {[%emt 0:00:02]} f4 {[%emt 0:03:59]} 22. exf4 {[%emt 0:00:46]} gxf4 {[%emt 0:05:14]} 23. Bh4 {[%emt 0:00:37]} Bg7 {[%emt 0:00:04]} 24. Bxf6 {[%emt 0:03:25]} Bxf6 {[%emt 0:00:11]} 25. Qe2 {[%emt 0:03:10]} Ne7 {[%emt 0:03:44]} 26. Bg4 {[%emt 0:01:52]} ({Better is} 26. c4 $15) 26... Kh8 {[%emt 0:01:35]} 27. Bxe6 {[%emt 0:01:24]} (27. c4 $17) 27... Qxe6 {[%emt 0:00:02]} 28. Nd4 {[%emt 0:03:11]} Qf7 {[%emt 0:05:35]} 29. Nf3 {[%emt 0:01:09]} Qh5 {[%emt 0:05:11]} 30. Rfe1 {[%emt 0:02:40]} e4 {[%emt 0:00:22]} 31. Nh2 {[%emt 0:00:40]} f3 {[%emt 0:00:13]} 32. gxf3 {[%emt 0:02:10]} Qxh3 {[%emt 0:01:39]} 33. Qf1 {[%emt 0:01:45]} Qh4 {[%emt 0:03:05]} 34. fxe4 {[%emt 0:00:31]} Be5 {[%emt 0:01:46]} 35. f4 {[%emt 0:00:07]} Bxf4 {[%emt 0:00:07]} 36. Re2 {[%emt 0:00:03]} Rg8+ {[%emt 0:01:15]} 37. Kh1 {[%emt 0:00:08]} Bxh2 {[%emt 0:00:47]} 38. Rxh2 {[%emt 0:00:24]} Qxe4+ {[%emt 0:00:05]} 39. Rg2 {[%emt 0:00:28]} Nf5 {[%emt 0:00:46]} 40. Rd3 {[%emt 0:02:33]} Rxg2 {[%emt 0:00:33]} 0-1

[Event "22nd OIBM 2018"]
[Site "Gmund am Tegernsee"]
[Date "2018.10.30"]
[Round "4"]
[White "Lochte, Thomas"]
[Black "Imnadze, Nato"]
[Result "1/2-1/2"]
[ECO "B00"]
[WhiteElo "2095"]
[BlackElo "2291"]
[Annotator "NA"]
[PlyCount "106"]
[EventDate "2018.10.27"]
[EventType "swiss"]
[EventCountry "GER"]
[SourceTitle "playchess.com"]
[Source "ChessBase"]
[SourceQuality "1"]
[TimeControl "40/5400+30:1800+30"]

1. e4 {[%emt 0:04:34]} Nc6 {[%emt 0:00:01]} 2. d4 {[%emt 0:01:37]} d5 {[%emt 0:00:06]} 3. Nc3 {[%emt 0:02:17]} Nf6 {[%emt 0:00:31]} 4. e5 {[%emt 0:00:22]} Nd7 {[%emt 0:01:12]} 5. Nxd5 {[%emt 0:00:38]} Ndb8 {[%emt 0:02:07] B00: Queen's Fianchetto Defence, Nimzowitsch Defence} 6. Ne3 {[%emt 0:12:51]} Qxd4 {[%emt 0:03:34] LiveBook: 14 Games} 7. Qxd4 {[%emt 0:01:46]} Nxd4 {[%emt 0:00:04]} 8. c3 {[%emt 0:01:02]} Ndc6 $146 {[%emt 0:08:23]} ({Predecessor:} 8... Nf5 9. Nd5 Kd8 10. Nf3 e6 11. Bg5+ Ne7 12. Ne3 h6 13. O-O-O+ {1-0 (42) Iljiushenok,I (2522)-Vlasenko,M (2433) St Petersburg 2017}) 9. Nd5 {[%emt 0:00:25]} Kd8 {[%emt 0:00:13]} 10. Nf3 {[%emt 0:01:45]} Be6 {[%emt 0:01:11]} 11. Nf4 {[%emt 0:02:39]} Bg4 {[%emt 0:06:29]} 12. Be2 {[%emt 0:02:58]} (12. e6 $142 $1) 12... e6 {[%emt 0:23:06]} 13. Ng5 $1 {[%emt 0:12:04]} Bxe2 {[%emt 0:01:08]} 14. Nxf7+ {[%emt 0:01:28]} ({Weniger gut wäre} 14. Kxe2 Ke8 $14) ({Minderwertig wäre} 14. Nxe2 Nxe5 15. Bf4 Nbc6 $11) 14... Ke8 {[%emt 0:07:52]} 15. Nxh8 {[%emt 0:00:22]} Bg4 {[%emt 0:12:11]} 16. f3 {[%emt 0:01:43]} g5 {[%emt 0:01:00]} 17. Ne2 {[%emt 0:03:48]} Bf5 {[%emt 0:01:54]} 18. Bxg5 {[%emt 0:03:21]} Nxe5 {[%emt 0:00:02]} 19. Nd4 {[%emt 0:08:50]} Nbc6 {[%emt 0:07:42]} 20. Nxf5 {[%emt 0:03:27]} exf5 {[%emt 0:00:05]} 21. f4 {[%emt 0:00:19]} Nd3+ {[%emt 0:05:52]} 22. Kd2 {[%emt 0:02:08]} Nf2 {[%emt 0:00:13]} 23. Rhe1+ {[%emt 0:01:37]} Ne4+ {[%emt 0:00:05]} 24. Kc2 {[%emt 0:02:46]} Be7 {[%emt 0:02:17]} (24... Bg7 $142 25. g4 Kf8 26. gxf5 Re8 27. Ng6+ hxg6 28. fxg6 Bf6 29. Bxf6 Nxf6 30. Rxe8+ Nxe8) 25. g4 {[%emt 0:09:00]} (25. Rad1 $142) 25... Kf8 $2 {[%emt 0:04:47]} 26. gxf5 {[%emt 0:01:08]} Nxg5 {[%emt 0:02:38]} 27. fxg5 {[%emt 0:00:20]} Bxg5 {[%emt 0:00:24]} 28. Re6 {[%emt 0:04:33]} Nd8 {[%emt 0:01:28]} 29. Re4 {[%emt 0:01:13]} Bf6 {[%emt 0:01:01]} 30. Rae1 {[%emt 0:03:32]} Nc6 {[%emt 0:00:28]} 31. b4 {[%emt 0:01:23]} a6 {[%emt 0:02:17]} 32. a4 {[%emt 0:00:09]} Bxh8 {[%emt 0:02:37]} 33. b5 {[%emt 0:00:01]} axb5 {[%emt 0:00:05]} 34. axb5 {[%emt 0:00:07]} Ne5 {[%emt 0:02:17]} 35. Rxe5 {[%emt 0:00:24]} Bxe5 {[%emt 0:00:04]} 36. Rxe5 {[%emt 0:00:09]} Ra2+ {[%emt 0:00:01]} 37. Kb3 {[%emt 0:00:16]} Rxh2 {[%emt 0:00:04]} 38. Rc5 {[%emt 0:00:14]} c6 {[%emt 0:00:52]} 39. bxc6 {[%emt 0:00:38]} bxc6 {[%emt 0:00:03]} 40. Rxc6 {[%emt 0:00:11]} Rf2 {[%emt 0:00:19]} 41. Rh6 {[%emt 0:32:10]} Rxf5 {[%emt 0:30:41]} 42. Rxh7 {[%emt 0:00:03]} Ke8 {[%emt 0:00:26]} 43. Kb4 {[%emt 0:00:44]} Kd8 {[%emt 0:00:10]} 44. c4 {[%emt 0:00:17]} Kc8 {[%emt 0:00:05]} 45. c5 {[%emt 0:00:40]} Rf6 {[%emt 0:00:03]} 46. Kb5 {[%emt 0:00:16]} Rg6 {[%emt 0:00:10]} 47. Ra7 {[%emt 0:00:55]} Rh6 {[%emt 0:00:28]} 48. Ra4 {[%emt 0:00:54]} Kc7 {[%emt 0:00:51]} 49. Ra8 {[%emt 0:01:02]} Kb7 {[%emt 0:01:24]} 50. Rg8 {[%emt 0:00:17]} Kc7 {[%emt 0:00:04]} 51. Rg7+ {[%emt 0:00:08]} Kc8 {[%emt 0:00:05]} 52. Rg5 {[%emt 0:03:02]} Kb7 {[%emt 0:02:34]} 53. Kc4 $11 {[%emt 0:01:15]} Kc6 {[%emt 0:00:08]} 1/2-1/2

[Event "22nd OIBM 2018"]
[Site "Gmund am Tegernsee"]
[Date "2018.10.30"]
[Round "4"]
[White "Obermeier, Herbert"]
[Black "Ries, Berthold"]
[Result "0-1"]
[ECO "B51"]
[WhiteElo "2065"]
[BlackElo "1862"]
[Annotator "NA"]
[PlyCount "63"]
[EventDate "2018.10.27"]
[EventType "swiss"]
[EventCountry "GER"]
[SourceTitle "playchess.com"]
[Source "ChessBase"]
[SourceQuality "1"]
[TimeControl "40/5400+30:1800+30"]

1. e4 {[%emt 0:00:00]} c5 {[%emt 0:00:00]} 2. Nf3 {[%emt 0:00:00]} d6 {[%emt 0:00:00]} 3. Bb5+ {[%emt 0:00:00]} Nd7 {[%emt 0:00:15]} 4. Ba4 {[%emt 0:00:00]} a6 {[%emt 0:01:06]} 5. c4 {[%emt 0:03:21]} e5 {[%emt 0:00:43]} 6. Nc3 {[%emt 0:00:22]} Ngf6 {[%emt 0:00:38]} 7. O-O {[%emt 0:00:44]} Be7 {[%emt 0:00:16]} 8. d3 {[%emt 0:04:37]} O-O {[%emt 0:01:07]} 9. h3 {[%emt 0:00:30]} h6 {[%emt 0:10:09]} 10. Nh2 {[%emt 0:10:25]} Nb6 {[%emt 0:02:35]} 11. Bc2 {[%emt 0:01:23]} Be6 {[%emt 0:01:57]} 12. Ne2 $11 {[%emt 0:06:51]} Nh5 {[%emt 0:08:45]} 13. g4 {[%emt 0:02:09]} Nf6 {[%emt 0:01:38]} 14. Ng3 {[%emt 0:02:58]} Nh7 {[%emt 0:00:44]} 15. Nf5 {[%emt 0:15:33]} Bg5 {[%emt 0:02:09]} 16. Qf3 {[%emt 0:10:24]} g6 {[%emt 0:06:15]} 17. Ng3 {[%emt 0:06:33]} Bxc1 {[%emt 0:00:50]} 18. Raxc1 {[%emt 0:13:37]} Qh4 {[%emt 0:00:15]} 19. Ne2 {[%emt 0:06:57]} Ng5 {[%emt 0:01:25]} 20. Qg2 {[%emt 0:04:19]} Nxh3+ {[%emt 0:04:52]} 21. Kh1 {[%emt 0:00:01]} Nf4 {[%emt 0:03:54]} 22. Nxf4 {[%emt 0:01:24]} exf4 {[%emt 0:00:10]} 23. Qf3 {[%emt 0:00:37]} Qf6 {[%emt 0:00:18]} 24. Kg2 {[%emt 0:01:06]} Nd7 {[%emt 0:01:26]} 25. Qh3 {[%emt 0:01:43]} Qg5 {[%emt 0:04:16]} 26. f3 {[%emt 0:00:44]} Ne5 {[%emt 0:01:22]} 27. Kf2 {[%emt 0:00:58]} Kg7 {[%emt 0:00:48]} 28. Rh1 {[%emt 0:02:18]} Rh8 {[%emt 0:00:54]} 29. Rcg1 {[%emt 0:01:00]} h5 {[%emt 0:04:48]} 30. Qf1 {[%emt 0:02:08]} hxg4 {[%emt 0:02:18]} 31. fxg4 {[%emt 0:00:54]} Rh4 {[%emt 0:01:39]} 32. Bd1 0-1

[Event "22nd OIBM 2018"]
[Site "Gmund am Tegernsee"]
[Date "2018.10.30"]
[Round "4"]
[White "Glaser, Christian"]
[Black "Lipok, Christoph"]
[Result "0-1"]
[ECO "E90"]
[WhiteElo "2063"]
[BlackElo "2271"]
[Annotator "NA"]
[PlyCount "66"]
[EventDate "2018.10.27"]
[EventType "swiss"]
[EventCountry "GER"]
[SourceTitle "playchess.com"]
[Source "ChessBase"]
[SourceQuality "1"]
[TimeControl "40/5400+30:1800+30"]

1. d4 {[%emt 0:00:00]} Nf6 {[%emt 0:00:00]} 2. c4 {[%emt 0:00:31]} g6 {[%emt 0:00:38]} 3. Nc3 {[%emt 0:02:29]} Bg7 {[%emt 0:00:08]} 4. e4 {[%emt 0:00:05]} d6 {[%emt 0:00:03]} 5. Nf3 {[%emt 0:00:33]} O-O {[%emt 0:00:19]} 6. h3 {[%emt 0:00:05]} e5 {[%emt 0:00:36]} 7. d5 {[%emt 0:01:41]} Nh5 {[%emt 0:01:02]} 8. g3 {[%emt 0:04:29] E90: King's Indian: Classical: Early deviations and 6 h3} Na6 {[%emt 0:01:03]} (8... f5 9. exf5 gxf5 10. Bg5 Qe8 11. Be2 Na6 12. Nh4 Nf6 13. Rg1 Kh8 14. Qc2 Nb4 15. Qd2 a5 {1-0 (49) Le,Q (2727)-Aryan,C (2536) Abu Dhabi 2018}) 9. Be3 {[%emt 0:11:29]} Nc5 {[%emt 0:01:11] LiveBook: 10 Games} 10. b4 {[%emt 0:04:33]} Nd7 {[%emt 0:00:22]} 11. Rc1 {[%emt 0:03:10]} a5 {[%emt 0:01:48]} 12. a3 {[%emt 0:00:34]} Qe7 $146 {[%emt 0:00:40]} ({Predecessor:} 12... axb4 13. axb4 f5 14. exf5 gxf5 15. Nxe5 Qe8 16. Nxd7 Bxd7 {½-½ (76) Videki,S (2425)-Van Osch,M (2284) Schwarzach 2016}) 13. Be2 {[%emt 0:01:07]} axb4 {[%emt 0:04:35]} 14. axb4 {[%emt 0:00:02]} f5 {[%emt 0:01:48]} 15. exf5 {[%emt 0:01:51]} gxf5 {[%emt 0:03:26]} 16. Bg5 $1 {[%emt 0:11:52]} Ndf6 {[%emt 0:16:03]} 17. Nh4 {[%emt 0:06:10]} Qf7 {[%emt 0:01:06]} 18. Nb5 {[%emt 0:02:49]} f4 {[%emt 0:07:19]} 19. Bxh5 {[%emt 0:06:58]} Nxh5 {[%emt 0:00:45]} 20. g4 {[%emt 0:00:35]} Nf6 {[%emt 0:03:47]} 21. f3 {[%emt 0:02:54]} h6 {[%emt 0:14:09]} 22. Bxf6 {[%emt 0:00:56]} Qxf6 {[%emt 0:00:08]} 23. Ng2 {[%emt 0:00:30]} e4 {[%emt 0:03:57]} 24. O-O {[%emt 0:08:56]} e3 {[%emt 0:01:05]} 25. Qb3 {[%emt 0:04:03]} c6 {[%emt 0:07:10]} 26. Nc3 {[%emt 0:04:07]} h5 {[%emt 0:00:27]} 27. Ne2 {[%emt 0:03:38]} Qh6 {[%emt 0:05:47]} 28. c5 {[%emt 0:02:58]} hxg4 {[%emt 0:00:28]} 29. hxg4 {[%emt 0:00:35] [#]} cxd5 $2 {[%emt 0:04:18]} (29... Be5 $1 $19 30. Rc2 Kg7 31. Ngxf4 Rxf4 32. Nxf4 Qxf4) 30. Qxd5+ {[%emt 0:00:32]} Be6 {[%emt 0:00:41]} 31. Qxb7 {[%emt 0:04:04]} Ra2 {[%emt 0:00:52]} 32. Nc3 {[%emt 0:05:07]} Bxc3 $19 {[%emt 0:01:08]} 33. Rxc3 {[%emt 0:00:23]} Qh3 {[%emt 0:00:11]} 0-1

[Event "22nd OIBM 2018"]
[Site "Gmund am Tegernsee"]
[Date "2018.10.30"]
[Round "4"]
[White "Dumjahn, Carsten"]
[Black "Jahnz, Fabian"]
[Result "1/2-1/2"]
[ECO "A09"]
[WhiteElo "2052"]
[BlackElo "2244"]
[Annotator "NA"]
[PlyCount "45"]
[EventDate "2018.10.27"]
[EventType "swiss"]
[EventCountry "GER"]
[SourceTitle "playchess.com"]
[Source "ChessBase"]
[SourceQuality "1"]
[TimeControl "40/5400+30:1800+30"]

1. Nf3 {[%emt 0:00:00]} d5 {[%emt 0:00:00]} 2. c4 {[%emt 0:00:00]} dxc4 {[%emt 0:01:35]} 3. Na3 {[%emt 0:00:12]} a6 {[%emt 0:00:31]} 4. Nxc4 {[%emt 0:00:18]} b5 {[%emt 0:00:21]} 5. Ne3 {[%emt 0:00:28]} Bb7 {[%emt 0:00:47]} 6. g3 {[%emt 0:00:27]} Nf6 {[%emt 0:01:03]} 7. Bg2 {[%emt 0:00:15]} e6 {[%emt 0:00:22]} 8. O-O {[%emt 0:00:13]} c5 {[%emt 0:01:46]} 9. b3 {[%emt 0:00:37]} Be7 {[%emt 0:00:37]} 10. Bb2 {[%emt 0:00:15]} Nbd7 {[%emt 0:01:26]} 11. Qc2 {[%emt 0:00:52]} O-O {[%emt 0:01:00]} 12. Rac1 {[%emt 0:02:07]} Rc8 {[%emt 0:05:08]} 13. Rfd1 {[%emt 0:01:37]} Qb6 {[%emt 0:03:36]} 14. Qb1 {[%emt 0:00:54]} Rfd8 {[%emt 0:04:18]} 15. Qa1 {[%emt 0:00:29]} Ne8 {[%emt 0:10:03]} 16. d4 {[%emt 0:07:21]} cxd4 {[%emt 0:17:35]} 17. Bxd4 {[%emt 0:06:14]} Bc5 18. b4 $11 {[%emt 0:35:23]} Bxd4 {[%emt 0:14:14]} 19. Nxd4 {[%emt 0:00:37]} Bxg2 {[%emt 0:02:04]} 20. Kxg2 Nef6 {[%emt 0:07:04]} 21. Rxc8 {[%emt 0:02:08]} Rxc8 {[%emt 0:00:07]} 22. Nb3 {[%emt 0:00:22]} h6 {[%emt 0:03:04]} 23. Qd4 {[%emt 0:03:01]} 1/2-1/2

[Event "22nd OIBM 2018"]
[Site "Gmund am Tegernsee"]
[Date "2018.10.30"]
[Round "4"]
[White "Valette, Christian"]
[Black "Stolte, Alexander"]
[Result "1-0"]
[ECO "A06"]
[WhiteElo "2016"]
[BlackElo "2218"]
[Annotator "NA"]
[PlyCount "47"]
[EventDate "2018.10.27"]
[EventType "swiss"]
[EventCountry "GER"]
[SourceTitle "playchess.com"]
[Source "ChessBase"]
[SourceQuality "1"]
[TimeControl "40/5400+30:1800+30"]

{[%evp 12,45,-12,-21,1,-9,32767,-8,-2,32767,-8,-43,32767,-32,-13,-34,32767,-23,-18,-31,0,32767,32767,-74,32767,-109,-70,32767,32767,32767,32767,32767,32767,32767,-25,-68]} 1. Nf3 {[%emt 0:00:00]} d5 {[%emt 0:00:00]} 2. e3 {[%emt 0:00:52]} c6 {[%emt 0:06:19]} 3. b3 {[%emt 0:00:27]} Bg4 {[%emt 0:00:47]} 4. Bb2 {[%emt 0:00:19]} Nd7 {[%emt 0:01:46]} 5. Be2 {[%emt 0:00:58]} Ngf6 {[%emt 0:03:10]} 6. Ne5 {[%emt 0:00:46] A06: Réti Opening:1 Nf3 d5} (6. O-O e6 7. c4 Bd6 8. h3 Bh5 9. d4 Ne4 10. Nbd2 f5 11. Nxe4 fxe4 12. Nd2 Bxe2 13. Qxe2 Qh4 14. f4 O-O 15. Qe1 Qh5 16. Qd1 Qh4 17. Qe1 {½-½ (83) Kasimdzhanov,R (2700)-Tomashevsky,E (2695) Dubai 2014}) 6... Nxe5 {[%emt 0:07:50]} 7. Bxe5 {[%emt 0:00:18] LiveBook: 3 Games} Bxe2 {[%emt 0:05:51]} 8. Qxe2 {[%emt 0:00:07]} Nd7 {[%emt 0:02:53]} 9. Bb2 {[%emt 0:01:12]} e5 {[%emt 0:00:57]} 10. O-O $146 {[%emt 0:17:04]} ({Predecessor:} 10. f4 exf4 11. exf4+ Qe7 12. Nc3 Qxe2+ 13. Kxe2 Be7 {0-1 (47) Ringuet,N (2055)-Ouakhir,P (2202) Saint Affrique 2013}) 10... Bd6 {[%emt 0:06:46]} 11. f4 {[%emt 0:02:08]} Qc7 {[%emt 0:07:19]} 12. e4 {[%emt 0:16:39]} O-O {[%emt 0:10:57]} 13. exd5 exf4 {[%emt 0:06:44]} 14. dxc6 {[%emt 0:05:29]} Qxc6 {[%emt 0:00:53]} 15. Nc3 {[%emt 0:05:57]} Rae8 {[%emt 0:03:27]} 16. Qb5 {[%emt 0:03:13]} Qc7 {[%emt 0:23:07]} 17. Nd5 {[%emt 0:20:14]} Qxc2 {[%emt 0:00:42]} 18. Qxd7 {[%emt 0:00:47]} Rd8 {[%emt 0:01:16]} 19. Nf6+ {[%emt 0:11:00]} gxf6 {[%emt 0:00:06]} 20. Qg4+ {[%emt 0:00:07]} Qg6 {[%emt 0:00:06]} 21. Qf3 {[%emt 0:00:12]} Rfe8 {[%emt 0:01:41]} 22. Rae1 {[%emt 0:01:09]} Be5 {[%emt 0:02:34]} (22... Bc5+ $17 23. d4 Rxe1 24. Rxe1 Bxd4+ 25. Bxd4 Rxd4 26. Qxb7 Kg7) 23. d4 $15 {[%emt 0:01:25]} Bxd4+ {[%emt 0:01:11]} 24. Bxd4 {[%emt 0:00:08]} 1-0